[Event "Titled Tuesday Blitz February 28 Early 2023"]
[White "Sourath Biswas"]
[Black "Tiarks, Jann-Christian"]
[WhiteFideId "35091484"]
[BlackFideId "12951595"]
[WhiteElo "2164"]
[BlackElo "2194"]
[Result "1-0"]
[Round "05"]
[TimeControl "180+2"]
[Date "2023.02.28"]
[WhiteClock "0:00:05"]
[BlackClock "0:00:02"]

1. d4 {[%clk 0:03:00]}  c5 {[%clk 0:02:58]} 2. Bf4 {[%clk 0:03:01]}  cxd4 {[%clk 0:02:58]} 3. Qxd4 {[%clk 0:03:02]}  Nc6 {[%clk 0:02:58]} 4. Qd2 {[%clk 0:02:59]}  e5 {[%clk 0:02:51]} 5. Bg3 {[%clk 0:02:58]}  d5 {[%clk 0:02:49]} 6. e3 {[%clk 0:02:58]}  Nf6 {[%clk 0:02:49]} 7. Bd3 {[%clk 0:02:55]}  Bd6 {[%clk 0:02:40]} 8. Ne2 {[%clk 0:02:49]}  O-O {[%clk 0:02:34]} 9. O-O {[%clk 0:02:47]}  Be6 {[%clk 0:02:04]} 10. c3 {[%clk 0:02:39]}  Qe7 {[%clk 0:02:01]} 11. Qc2 {[%clk 0:02:33]}  Rac8 {[%clk 0:01:58]} 12. Bf5 {[%clk 0:02:25]}  Nb4 {[%clk 0:01:52]} 13. Qa4 {[%clk 0:02:13]}  Bxf5 {[%clk 0:01:47]} 14. cxb4 {[%clk 0:02:14]}  Bxb4 {[%clk 0:01:38]} 15. Bxe5 {[%clk 0:02:06]}  Bd3 {[%clk 0:01:18]} 16. Bxf6 {[%clk 0:02:04]}  gxf6 {[%clk 0:01:18]} 17. Nbc3 {[%clk 0:00:44]}  Bxc3 {[%clk 0:01:05]} 18. Nxc3 {[%clk 0:00:45]}  Bxf1 {[%clk 0:01:05]} 19. Rxf1 {[%clk 0:00:45]}  Rfd8 {[%clk 0:01:05]} 20. Nxd5 {[%clk 0:00:42]}  Rxd5 {[%clk 0:01:00]} 21. Qg4+ {[%clk 0:00:41]}  Rg5 {[%clk 0:00:51]} 22. Qxc8+ {[%clk 0:00:42]}  Kg7 {[%clk 0:00:52]} 23. h4 {[%clk 0:00:41]}  Rg6 {[%clk 0:00:49]} 24. g3 {[%clk 0:00:34]}  Qe4 {[%clk 0:00:45]} 25. Qc7 {[%clk 0:00:13]}  h5 {[%clk 0:00:42]} 26. Qf4 {[%clk 0:00:13]}  Qe6 {[%clk 0:00:40]} 27. Qd4 {[%clk 0:00:13]}  Qxa2 {[%clk 0:00:39]} 28. b4 {[%clk 0:00:14]}  a6 {[%clk 0:00:38]} 29. Rc1 {[%clk 0:00:14]}  Rg4 {[%clk 0:00:37]} 30. Qd7 {[%clk 0:00:11]}  Rxb4 {[%clk 0:00:24]} 31. Rc7 {[%clk 0:00:05]}  b5 {[%clk 0:00:21]} 32. Kg2 {[%clk 0:00:03]}  Rb2 {[%clk 0:00:20]} 33. Qf5 {[%clk 0:00:04]}  b4 {[%clk 0:00:12]} 34. Rc6 {[%clk 0:00:04]}  Rd2 {[%clk 0:00:02]} 35. Qxf6+ {[%clk 0:00:04]}  Kh7 {[%clk 0:00:02]} 36. Qf5+ {[%clk 0:00:05]}  Kg7 {[%clk 0:00:02]} 37. Qg5+ {[%clk 0:00:05]}  Kf8 {[%clk 0:00:02]} 38. Rc8+ {[%clk 0:00:05]} 1-0


[Site "https://www.chess.com"]

[Event "Titled Tuesday Blitz February 28 Early 2023"]
[White "Ibadov, Dashgyn"]
[Black "Begunov, Konstantin"]
[WhiteFideId "24107514"]
[BlackFideId "4118510"]
[WhiteElo "2208"]
[BlackElo "2118"]
[Result "0-1"]
[Round "05"]
[TimeControl "180+2"]
[Date "2023.02.28"]
[WhiteClock "0:00:01"]
[BlackClock "0:00:13"]

1. e4 {[%clk 0:03:00]}  c5 {[%clk 0:02:59]} 2. Nf3 {[%clk 0:03:00]}  d6 {[%clk 0:03:00]} 3. d4 {[%clk 0:02:58]}  cxd4 {[%clk 0:03:00]} 4. Nxd4 {[%clk 0:02:59]}  Nf6 {[%clk 0:02:57]} 5. Nc3 {[%clk 0:02:59]}  a6 {[%clk 0:02:52]} 6. h3 {[%clk 0:02:59]}  e6 {[%clk 0:02:51]} 7. g4 {[%clk 0:02:58]}  b5 {[%clk 0:02:51]} 8. g5 {[%clk 0:02:55]}  b4 {[%clk 0:02:52]} 9. gxf6 {[%clk 0:02:54]}  bxc3 {[%clk 0:02:52]} 10. fxg7 {[%clk 0:02:52]}  Bxg7 {[%clk 0:02:51]} 11. bxc3 {[%clk 0:02:52]}  Qc7 {[%clk 0:02:49]} 12. Rg1 {[%clk 0:02:52]}  Qxc3+ {[%clk 0:02:42]} 13. Bd2 {[%clk 0:02:48]}  Qxd4 {[%clk 0:02:38]} 14. Rb1 {[%clk 0:02:46]}  Bf6 {[%clk 0:02:17]} 15. Bd3 {[%clk 0:02:39]}  Nd7 {[%clk 0:02:11]} 16. Rb4 {[%clk 0:02:32]}  Qc5 {[%clk 0:02:07]} 17. Rc4 {[%clk 0:02:28]}  Qa7 {[%clk 0:01:59]} 18. Be3 {[%clk 0:02:13]}  Nc5 {[%clk 0:01:57]} 19. Kd2 {[%clk 0:01:51]}  Bd7 {[%clk 0:01:48]} 20. Qh5 {[%clk 0:01:43]}  Rc8 {[%clk 0:01:41]} 21. Qh6 {[%clk 0:01:19]}  Be7 {[%clk 0:01:27]} 22. e5 {[%clk 0:01:09]}  Bb5 {[%clk 0:01:20]} 23. Qg7 {[%clk 0:00:57]}  Rf8 {[%clk 0:01:17]} 24. exd6 {[%clk 0:00:52]}  Bxd6 {[%clk 0:01:14]} 25. Rd4 {[%clk 0:00:47]}  Be7 {[%clk 0:01:02]} 26. Bxh7 {[%clk 0:00:46]}  Qc7 {[%clk 0:00:56]} 27. c4 {[%clk 0:00:38]}  Qa5+ {[%clk 0:00:48]} 28. Ke2 {[%clk 0:00:33]}  Bc6 {[%clk 0:00:42]} 29. Rd2 {[%clk 0:00:20]}  Ne4 {[%clk 0:00:38]} 30. Bxe4 {[%clk 0:00:15]}  Bxe4 {[%clk 0:00:36]} 31. Qd4 {[%clk 0:00:16]}  Bc6 {[%clk 0:00:31]} 32. Qa7 {[%clk 0:00:14]}  Bb4 {[%clk 0:00:24]} 33. Bg5 {[%clk 0:00:10]}  Ra8 {[%clk 0:00:20]} 34. Qd4 {[%clk 0:00:01]}  Bxd2 {[%clk 0:00:19]} 35. Bxd2 {[%clk 0:00:02]}  Rd8 {[%clk 0:00:15]} 36. Qf4 {[%clk 0:00:01]}  Qc5 {[%clk 0:00:13]} 37. Be3 {[%clk 0:00:01]}  Qd6 {[%clk 0:00:13]} 0-1


[Site "https://www.chess.com"]

[Event "Titled Tuesday Blitz February 28 Early 2023"]
[White "Romero Barreto, Jaime Jose"]
[Black "Qashashvili, Alexandre"]
[WhiteFideId "3902498"]
[BlackFideId "13600842"]
[WhiteElo "2313"]
[BlackElo "2405"]
[Result "1-0"]
[Round "05"]
[TimeControl "180+2"]
[Date "2023.02.28"]
[WhiteClock "0:01:12"]
[BlackClock "0:00:14"]

1. e4 {[%clk 0:03:00]}  c6 {[%clk 0:02:26]} 2. d4 {[%clk 0:03:00]}  d5 {[%clk 0:02:25]} 3. Nc3 {[%clk 0:03:00]}  dxe4 {[%clk 0:02:25]} 4. Nxe4 {[%clk 0:03:01]}  Nd7 {[%clk 0:02:26]} 5. Bd3 {[%clk 0:02:57]}  Ngf6 {[%clk 0:02:25]} 6. c3 {[%clk 0:02:56]}  Nxe4 {[%clk 0:02:25]} 7. Bxe4 {[%clk 0:02:57]}  Nf6 {[%clk 0:02:25]} 8. Bc2 {[%clk 0:02:57]}  Bg4 {[%clk 0:02:24]} 9. f3 {[%clk 0:02:57]}  Bh5 {[%clk 0:02:24]} 10. Ne2 {[%clk 0:02:57]}  Bg6 {[%clk 0:02:23]} 11. Nf4 {[%clk 0:02:51]}  Bxc2 {[%clk 0:02:21]} 12. Qxc2 {[%clk 0:02:51]}  e6 {[%clk 0:02:21]} 13. Bd2 {[%clk 0:02:45]}  Bd6 {[%clk 0:02:21]} 14. Nd3 {[%clk 0:02:45]}  Qc7 {[%clk 0:02:19]} 15. O-O-O {[%clk 0:02:44]}  O-O-O {[%clk 0:02:18]} 16. Kb1 {[%clk 0:02:43]}  Nd5 {[%clk 0:02:18]} 17. g3 {[%clk 0:02:40]}  h6 {[%clk 0:02:10]} 18. c4 {[%clk 0:02:40]}  Nf6 {[%clk 0:02:09]} 19. Bc3 {[%clk 0:02:40]}  Nd7 {[%clk 0:02:03]} 20. f4 {[%clk 0:02:32]}  f6 {[%clk 0:02:01]} 21. Rhe1 {[%clk 0:02:29]}  Rhe8 {[%clk 0:02:00]} 22. Re2 {[%clk 0:02:25]}  c5 {[%clk 0:01:52]} 23. Rde1 {[%clk 0:02:22]}  cxd4 {[%clk 0:01:52]} 24. Bxd4 {[%clk 0:02:22]}  Nc5 {[%clk 0:01:49]} 25. Bxc5 {[%clk 0:02:12]}  Bxc5 {[%clk 0:01:50]} 26. Rxe6 {[%clk 0:02:13]}  Rxe6 {[%clk 0:01:49]} 27. Rxe6 {[%clk 0:02:13]}  Bd4 {[%clk 0:01:30]} 28. a3 {[%clk 0:02:05]}  Qd7 {[%clk 0:01:19]} 29. Re2 {[%clk 0:01:57]}  Re8 {[%clk 0:01:03]} 30. Nb4 {[%clk 0:01:54]}  Rxe2 {[%clk 0:01:01]} 31. Qxe2 {[%clk 0:01:55]}  g5 {[%clk 0:00:43]} 32. fxg5 {[%clk 0:01:50]}  hxg5 {[%clk 0:00:42]} 33. Nd5 {[%clk 0:01:47]}  Be5 {[%clk 0:00:33]} 34. Qh5 {[%clk 0:01:36]}  b5 {[%clk 0:00:22]} 35. Qe2 {[%clk 0:01:14]}  a6 {[%clk 0:00:14]} 36. Nb6+ {[%clk 0:01:12]} 1-0


[Site "https://www.chess.com"]

[Event "Titled Tuesday Blitz February 28 Early 2023"]
[White "Sarkar, Justin"]
[Black "Baches Garcia, Guillermo"]
[WhiteFideId "2010011"]
[BlackFideId "2209764"]
[WhiteElo "2189"]
[BlackElo "2495"]
[Result "1-0"]
[Round "05"]
[TimeControl "180+2"]
[Date "2023.02.28"]
[WhiteClock "0:00:08"]
[BlackClock "0:00:05"]

1. d4 {[%clk 0:02:52]}  Nf6 {[%clk 0:02:58]} 2. c4 {[%clk 0:02:50]}  e6 {[%clk 0:02:58]} 3. Nf3 {[%clk 0:02:49]}  d5 {[%clk 0:02:58]} 4. Nc3 {[%clk 0:02:43]}  c5 {[%clk 0:02:58]} 5. cxd5 {[%clk 0:02:39]}  Nxd5 {[%clk 0:02:59]} 6. g3 {[%clk 0:02:26]}  Nxc3 {[%clk 0:02:58]} 7. bxc3 {[%clk 0:02:26]}  cxd4 {[%clk 0:02:58]} 8. cxd4 {[%clk 0:02:25]}  Bb4+ {[%clk 0:02:57]} 9. Bd2 {[%clk 0:02:24]}  Bxd2+ {[%clk 0:02:58]} 10. Qxd2 {[%clk 0:02:25]}  b6 {[%clk 0:02:58]} 11. Bg2 {[%clk 0:02:23]}  Bb7 {[%clk 0:02:58]} 12. O-O {[%clk 0:02:22]}  O-O {[%clk 0:02:58]} 13. a4 {[%clk 0:02:18]}  Nd7 {[%clk 0:02:49]} 14. a5 {[%clk 0:02:14]}  Rc8 {[%clk 0:02:42]} 15. axb6 {[%clk 0:02:11]}  axb6 {[%clk 0:02:42]} 16. e3 {[%clk 0:01:48]}  Ra8 {[%clk 0:02:26]} 17. Rfc1 {[%clk 0:01:32]}  Rxa1 {[%clk 0:02:10]} 18. Rxa1 {[%clk 0:01:31]}  Qc7 {[%clk 0:02:10]} 19. Qb4 {[%clk 0:01:19]}  Ra8 {[%clk 0:01:54]} 20. Rxa8+ {[%clk 0:01:07]}  Bxa8 {[%clk 0:01:55]} 21. Ne1 {[%clk 0:01:07]}  Bxg2 {[%clk 0:01:49]} 22. Kxg2 {[%clk 0:01:07]}  Nf6 {[%clk 0:01:35]} 23. Nd3 {[%clk 0:00:50]}  h5 {[%clk 0:01:25]} 24. Ne5 {[%clk 0:00:40]}  h4 {[%clk 0:01:07]} 25. gxh4 {[%clk 0:00:31]}  Nd5 {[%clk 0:00:57]} 26. Qb5 {[%clk 0:00:26]}  f6 {[%clk 0:00:49]} 27. Qe8+ {[%clk 0:00:24]}  Kh7 {[%clk 0:00:47]} 28. Qh5+ {[%clk 0:00:21]}  Kg8 {[%clk 0:00:48]} 29. Qe8+ {[%clk 0:00:20]}  Kh7 {[%clk 0:00:48]} 30. Qxe6 {[%clk 0:00:17]}  Nxe3+ {[%clk 0:00:31]} 31. fxe3 {[%clk 0:00:17]}  fxe5 {[%clk 0:00:26]} 32. dxe5 {[%clk 0:00:17]}  b5 {[%clk 0:00:21]} 33. Qf5+ {[%clk 0:00:15]}  Kg8 {[%clk 0:00:19]} 34. e6 {[%clk 0:00:14]}  Qb7+ {[%clk 0:00:16]} 35. e4 {[%clk 0:00:13]}  b4 {[%clk 0:00:14]} 36. Qe5 {[%clk 0:00:09]}  Kf8 {[%clk 0:00:07]} 37. Qc5+ {[%clk 0:00:09]}  Ke8 {[%clk 0:00:06]} 38. Qh5+ {[%clk 0:00:08]}  Kf8 {[%clk 0:00:06]} 39. Qh8+ {[%clk 0:00:08]}  Ke7 {[%clk 0:00:05]} 40. Qxg7+ {[%clk 0:00:08]}  Kxe6 {[%clk 0:00:05]} 41. Qxb7 {[%clk 0:00:08]} 1-0


[Site "https://www.chess.com"]

[Event "Titled Tuesday Blitz February 28 Early 2023"]
[White "Piriflillo"]
[Black "Novikov, Evgenij"]
[BlackFideId "4125380"]
[WhiteElo "2329"]
[BlackElo "2242"]
[Result "1/2-1/2"]
[Round "05"]
[TimeControl "180+2"]
[Date "2023.02.28"]
[WhiteClock "0:00:45"]
[BlackClock "0:00:36"]

1. e4 {[%clk 0:03:00]}  c5 {[%clk 0:02:59]} 2. Nc3 {[%clk 0:03:00]}  e6 {[%clk 0:02:57]} 3. d4 {[%clk 0:02:59]}  cxd4 {[%clk 0:02:47]} 4. Qxd4 {[%clk 0:02:58]}  Nc6 {[%clk 0:02:47]} 5. Qe3 {[%clk 0:02:51]}  d6 {[%clk 0:02:44]} 6. Bd2 {[%clk 0:02:48]}  Nf6 {[%clk 0:02:42]} 7. h3 {[%clk 0:02:48]}  Be7 {[%clk 0:02:42]} 8. O-O-O {[%clk 0:02:47]}  O-O {[%clk 0:02:42]} 9. g4 {[%clk 0:02:46]}  d5 {[%clk 0:02:35]} 10. exd5 {[%clk 0:02:26]}  Nxd5 {[%clk 0:02:32]} 11. Qe1 {[%clk 0:02:01]}  Bf6 {[%clk 0:01:57]} 12. Bg2 {[%clk 0:01:56]}  Qb6 {[%clk 0:01:54]} 13. Bxd5 {[%clk 0:01:28]}  exd5 {[%clk 0:01:53]} 14. Be3 {[%clk 0:01:23]}  Qa5 {[%clk 0:01:29]} 15. Kb1 {[%clk 0:01:13]}  Bxc3 {[%clk 0:01:21]} 16. Qxc3 {[%clk 0:01:11]}  Qxc3 {[%clk 0:01:21]} 17. bxc3 {[%clk 0:01:12]}  Be6 {[%clk 0:01:19]} 18. Ne2 {[%clk 0:01:10]}  Rfd8 {[%clk 0:01:16]} 19. Nd4 {[%clk 0:01:09]}  Rac8 {[%clk 0:01:15]} 20. Nxc6 {[%clk 0:01:08]}  Rxc6 {[%clk 0:01:11]} 21. Bd4 {[%clk 0:01:06]}  a5 {[%clk 0:01:03]} 22. f4 {[%clk 0:01:05]}  f6 {[%clk 0:01:03]} 23. f5 {[%clk 0:01:04]}  Bf7 {[%clk 0:01:03]} 24. Rhe1 {[%clk 0:01:04]}  Kf8 {[%clk 0:01:02]} 25. Re3 {[%clk 0:01:02]}  Re8 {[%clk 0:00:56]} 26. Rde1 {[%clk 0:01:01]}  Rxe3 {[%clk 0:00:55]} 27. Rxe3 {[%clk 0:01:02]}  b5 {[%clk 0:00:55]} 28. a3 {[%clk 0:01:01]}  Be8 {[%clk 0:00:46]} 29. h4 {[%clk 0:00:53]}  Bd7 {[%clk 0:00:44]} 30. Rf3 {[%clk 0:00:51]}  Rc4 {[%clk 0:00:39]} 31. Rf4 {[%clk 0:00:41]}  Kf7 {[%clk 0:00:36]} 32. Kc1 {[%clk 0:00:39]}  b4 {[%clk 0:00:36]} 33. cxb4 {[%clk 0:00:38]}  axb4 {[%clk 0:00:37]} 34. axb4 {[%clk 0:00:38]}  Ba4 {[%clk 0:00:37]} 35. c3 {[%clk 0:00:35]}  Rc8 {[%clk 0:00:30]} 36. g5 {[%clk 0:00:31]}  Re8 {[%clk 0:00:29]} 37. Kd2 {[%clk 0:00:31]}  Bb5 {[%clk 0:00:27]} 38. Rf2 {[%clk 0:00:32]}  Ra8 {[%clk 0:00:27]} 39. gxf6 {[%clk 0:00:27]}  gxf6 {[%clk 0:00:26]} 40. Ke3 {[%clk 0:00:21]}  Ra1 {[%clk 0:00:26]} 41. Kf3 {[%clk 0:00:18]}  Rh1 {[%clk 0:00:24]} 42. Kg3 {[%clk 0:00:17]}  Bd3 {[%clk 0:00:24]} 43. Bc5 {[%clk 0:00:12]}  h5 {[%clk 0:00:24]} 44. Bd4 {[%clk 0:00:13]}  Rc1 {[%clk 0:00:23]} 45. Ra2 {[%clk 0:00:12]}  Bxf5 {[%clk 0:00:20]} 46. Ra7+ {[%clk 0:00:13]}  Kg6 {[%clk 0:00:19]} 47. Ra6 {[%clk 0:00:13]}  Be4 {[%clk 0:00:14]} 48. Rxf6+ {[%clk 0:00:13]}  Kh7 {[%clk 0:00:15]} 49. Rf7+ {[%clk 0:00:13]}  Kg6 {[%clk 0:00:15]} 50. Rf6+ {[%clk 0:00:11]}  Kh7 {[%clk 0:00:14]} 51. Kf4 {[%clk 0:00:09]}  Rh1 {[%clk 0:00:05]} 52. Rf7+ {[%clk 0:00:08]}  Kg8 {[%clk 0:00:04]} 53. Rg7+ {[%clk 0:00:07]}  Kf8 {[%clk 0:00:05]} 54. Kg5 {[%clk 0:00:07]}  Rg1+ {[%clk 0:00:05]} 55. Kh6 {[%clk 0:00:06]}  Rxg7 {[%clk 0:00:04]} 56. Bxg7+ {[%clk 0:00:06]}  Kf7 {[%clk 0:00:04]} 57. Bd4 {[%clk 0:00:06]}  Bf3 {[%clk 0:00:04]} 58. b5 {[%clk 0:00:06]}  Ke6 {[%clk 0:00:04]} 59. b6 {[%clk 0:00:06]}  Kd7 {[%clk 0:00:04]} 60. Kg5 {[%clk 0:00:04]}  Kc6 {[%clk 0:00:05]} 61. Kf6 {[%clk 0:00:05]}  Be4 {[%clk 0:00:04]} 62. Ke5 {[%clk 0:00:05]}  Bf3 {[%clk 0:00:02]} 63. Be3 {[%clk 0:00:06]}  Kb7 {[%clk 0:00:03]} 64. Kf4 {[%clk 0:00:06]}  Be4 {[%clk 0:00:03]} 65. Kg3 {[%clk 0:00:07]}  Bd3 {[%clk 0:00:03]} 66. Kf4 {[%clk 0:00:08]}  Be4 {[%clk 0:00:03]} 67. Ke5 {[%clk 0:00:08]}  Bf3 {[%clk 0:00:03]} 68. Kd4 {[%clk 0:00:09]}  Bg2 {[%clk 0:00:03]} 69. Kc5 {[%clk 0:00:09]}  Bf3 {[%clk 0:00:03]} 70. Kb4 {[%clk 0:00:09]}  Be4 {[%clk 0:00:04]} 71. Kc5 {[%clk 0:00:10]}  Bf3 {[%clk 0:00:04]} 72. Kd6 {[%clk 0:00:10]}  Be4 {[%clk 0:00:04]} 73. Ke7 {[%clk 0:00:11]}  Bf3 {[%clk 0:00:05]} 74. Kf6 {[%clk 0:00:12]}  Be4 {[%clk 0:00:05]} 75. Ke6 {[%clk 0:00:10]}  Bf3 {[%clk 0:00:05]} 76. Ke5 {[%clk 0:00:11]}  Bg2 {[%clk 0:00:05]} 77. Kf4 {[%clk 0:00:10]}  Bh1 {[%clk 0:00:05]} 78. Kg3 {[%clk 0:00:10]}  Be4 {[%clk 0:00:04]} 79. Bf2 {[%clk 0:00:10]}  Bd3 {[%clk 0:00:04]} 80. Kf4 {[%clk 0:00:10]}  Be4 {[%clk 0:00:04]} 81. c4 {[%clk 0:00:10]}  Bh1 {[%clk 0:00:02]} 82. c5 {[%clk 0:00:10]}  Be4 {[%clk 0:00:02]} 83. Ke3 {[%clk 0:00:09]}  Bg2 {[%clk 0:00:02]} 84. Kd4 {[%clk 0:00:10]}  Bf3 {[%clk 0:00:03]} 85. Ke5 {[%clk 0:00:10]}  Bg2 {[%clk 0:00:02]} 86. Kd6 {[%clk 0:00:11]}  d4 {[%clk 0:00:02]} 87. Bxd4 {[%clk 0:00:11]}  Bf3 {[%clk 0:00:02]} 88. Kd7 {[%clk 0:00:10]}  Bc6+ {[%clk 0:00:02]} 89. Ke6 {[%clk 0:00:10]}  Bf3 {[%clk 0:00:03]} 90. Kf5 {[%clk 0:00:10]}  Be2 {[%clk 0:00:03]} 91. Kf4 {[%clk 0:00:09]}  Bd3 {[%clk 0:00:03]} 92. Be3 {[%clk 0:00:08]}  Be2 {[%clk 0:00:03]} 93. Kg3 {[%clk 0:00:08]}  Bg4 {[%clk 0:00:03]} 94. Kf4 {[%clk 0:00:08]}  Be2 {[%clk 0:00:04]} 95. Ke5 {[%clk 0:00:09]}  Bf3 {[%clk 0:00:04]} 96. Kd4 {[%clk 0:00:09]}  Bg4 {[%clk 0:00:04]} 97. Kc4 {[%clk 0:00:10]}  Bf3 {[%clk 0:00:04]} 98. Kb5 {[%clk 0:00:10]}  Be2+ {[%clk 0:00:05]} 99. Kb4 {[%clk 0:00:10]}  Bf3 {[%clk 0:00:06]} 100. Kc3 {[%clk 0:00:11]}  Be4 {[%clk 0:00:06]} 101. Bg1 {[%clk 0:00:11]}  Bf3 {[%clk 0:00:06]} 102. Kd4 {[%clk 0:00:12]}  Bg2 {[%clk 0:00:06]} 103. Ke5 {[%clk 0:00:11]}  Bf3 {[%clk 0:00:07]} 104. Kf4 {[%clk 0:00:12]}  Be2 {[%clk 0:00:07]} 105. Kg5 {[%clk 0:00:12]}  Bf3 {[%clk 0:00:07]} 106. Kf6 {[%clk 0:00:12]}  Be4 {[%clk 0:00:07]} 107. Ke6 {[%clk 0:00:12]}  Bf3 {[%clk 0:00:08]} 108. Kd6 {[%clk 0:00:13]}  Bg2 {[%clk 0:00:08]} 109. Bd4 {[%clk 0:00:12]}  Bf3 {[%clk 0:00:09]} 110. Bf6 {[%clk 0:00:12]}  Bg2 {[%clk 0:00:10]} 111. Kd7 {[%clk 0:00:12]}  Bf3 {[%clk 0:00:11]} 112. c6+ {[%clk 0:00:13]}  Bxc6+ {[%clk 0:00:10]} 113. Ke6 {[%clk 0:00:14]}  Kxb6 {[%clk 0:00:10]} 114. Kf5 {[%clk 0:00:14]}  Bf3 {[%clk 0:00:10]} 115. Kg5 {[%clk 0:00:14]}  Bg4 {[%clk 0:00:11]} 116. Be5 {[%clk 0:00:09]}  Kc6 {[%clk 0:00:12]} 117. Bg3 {[%clk 0:00:10]}  Kd5 {[%clk 0:00:13]} 118. Bf4 {[%clk 0:00:10]}  Ke6 {[%clk 0:00:14]} 119. Bc1 {[%clk 0:00:10]}  Kf7 {[%clk 0:00:14]} 120. Bf4 {[%clk 0:00:11]}  Ke6 {[%clk 0:00:15]} 121. Be3 {[%clk 0:00:12]}  Kd5 {[%clk 0:00:16]} 122. Bf4 {[%clk 0:00:13]}  Ke4 {[%clk 0:00:17]} 123. Bb8 {[%clk 0:00:13]}  Kf3 {[%clk 0:00:18]} 124. Bc7 {[%clk 0:00:13]}  Kg2 {[%clk 0:00:18]} 125. Bb8 {[%clk 0:00:14]}  Kh3 {[%clk 0:00:19]} 126. Bc7 {[%clk 0:00:15]}  Bd1 {[%clk 0:00:18]} 127. Bb8 {[%clk 0:00:16]}  Kg2 {[%clk 0:00:19]} 128. Bc7 {[%clk 0:00:17]}  Kf3 {[%clk 0:00:20]} 129. Bb8 {[%clk 0:00:18]}  Ke4 {[%clk 0:00:20]} 130. Bc7 {[%clk 0:00:19]}  Kd5 {[%clk 0:00:21]} 131. Bb8 {[%clk 0:00:20]}  Ke6 {[%clk 0:00:22]} 132. Bh2 {[%clk 0:00:20]}  Kd7 {[%clk 0:00:23]} 133. Bg3 {[%clk 0:00:21]}  Kc6 {[%clk 0:00:23]} 134. Bh2 {[%clk 0:00:22]}  Be2 {[%clk 0:00:23]} 135. Bg3 {[%clk 0:00:23]}  Kd5 {[%clk 0:00:24]} 136. Bh2 {[%clk 0:00:24]}  Ke4 {[%clk 0:00:24]} 137. Bb8 {[%clk 0:00:24]}  Kd5 {[%clk 0:00:25]} 138. Bc7 {[%clk 0:00:25]}  Ke6 {[%clk 0:00:26]} 139. Bh2 {[%clk 0:00:26]}  Bf3 {[%clk 0:00:26]} 140. Bg3 {[%clk 0:00:27]}  Bg4 {[%clk 0:00:27]} 141. Bh2 {[%clk 0:00:28]}  Kd7 {[%clk 0:00:27]} 142. Bg3 {[%clk 0:00:29]}  Kc6 {[%clk 0:00:28]} 143. Bh2 {[%clk 0:00:30]}  Kd5 {[%clk 0:00:29]} 144. Bg3 {[%clk 0:00:30]}  Ke4 {[%clk 0:00:29]} 145. Bb8 {[%clk 0:00:31]}  Kf3 {[%clk 0:00:30]} 146. Bc7 {[%clk 0:00:31]}  Kg2 {[%clk 0:00:31]} 147. Bb8 {[%clk 0:00:32]}  Bd1 {[%clk 0:00:30]} 148. Bc7 {[%clk 0:00:33]}  Kh3 {[%clk 0:00:30]} 149. Bb8 {[%clk 0:00:34]}  Be2 {[%clk 0:00:29]} 150. Bc7 {[%clk 0:00:35]}  Kg2 {[%clk 0:00:29]} 151. Bb8 {[%clk 0:00:36]}  Kf2 {[%clk 0:00:30]} 152. Bc7 {[%clk 0:00:37]}  Ke3 {[%clk 0:00:31]} 153. Bb8 {[%clk 0:00:37]}  Ke4 {[%clk 0:00:31]} 154. Bc7 {[%clk 0:00:38]}  Kd5 {[%clk 0:00:32]} 155. Bb8 {[%clk 0:00:39]}  Kc6 {[%clk 0:00:32]} 156. Bh2 {[%clk 0:00:40]}  Kd5 {[%clk 0:00:33]} 157. Bg3 {[%clk 0:00:41]}  Ke4 {[%clk 0:00:33]} 158. Bh2 {[%clk 0:00:42]}  Kd5 {[%clk 0:00:33]} 159. Bb8 {[%clk 0:00:43]}  Ke6 {[%clk 0:00:34]} 160. Bh2 {[%clk 0:00:43]}  Kd7 {[%clk 0:00:34]} 161. Bg3 {[%clk 0:00:43]}  Kc6 {[%clk 0:00:35]} 162. Bh2 {[%clk 0:00:44]}  Bg4 {[%clk 0:00:35]} 163. Bg1 {[%clk 0:00:45]}  Kd5 {[%clk 0:00:36]} 1/2-1/2


[Site "https://www.chess.com"]

[Event "Titled Tuesday Blitz February 28 Early 2023"]
[White "Zaichenko, Daria"]
[Black "Womacka, Mathias"]
[WhiteFideId "4197453"]
[BlackFideId "4611390"]
[WhiteElo "2039"]
[BlackElo "2377"]
[Result "0-1"]
[Round "05"]
[TimeControl "180+2"]
[Date "2023.02.28"]
[WhiteClock "0:01:15"]
[BlackClock "0:00:41"]

1. e4 {[%clk 0:02:58]}  c5 {[%clk 0:02:58]} 2. Nf3 {[%clk 0:02:58]}  d6 {[%clk 0:02:57]} 3. d4 {[%clk 0:02:58]}  cxd4 {[%clk 0:02:57]} 4. Nxd4 {[%clk 0:02:58]}  Nf6 {[%clk 0:02:58]} 5. Nc3 {[%clk 0:02:59]}  a6 {[%clk 0:02:58]} 6. Bd3 {[%clk 0:02:54]}  Nc6 {[%clk 0:02:56]} 7. Nb3 {[%clk 0:02:53]}  e6 {[%clk 0:02:52]} 8. O-O {[%clk 0:02:53]}  Be7 {[%clk 0:02:52]} 9. a4 {[%clk 0:02:52]}  b6 {[%clk 0:02:48]} 10. Be3 {[%clk 0:02:52]}  O-O {[%clk 0:02:47]} 11. f4 {[%clk 0:02:52]}  Bb7 {[%clk 0:02:46]} 12. Qf3 {[%clk 0:02:48]}  Nb4 {[%clk 0:02:44]} 13. a5 {[%clk 0:02:42]}  b5 {[%clk 0:02:41]} 14. Bb6 {[%clk 0:02:38]}  Qd7 {[%clk 0:02:36]} 15. Rad1 {[%clk 0:02:37]}  Nxd3 {[%clk 0:02:32]} 16. Rxd3 {[%clk 0:02:37]}  b4 {[%clk 0:02:31]} 17. Nc5 {[%clk 0:02:20]}  Qc8 {[%clk 0:02:19]} 18. Nxb7 {[%clk 0:02:18]}  Qxb7 {[%clk 0:02:18]} 19. e5 {[%clk 0:02:07]}  Qxf3 {[%clk 0:02:14]} 20. Rfxf3 {[%clk 0:02:03]}  bxc3 {[%clk 0:02:13]} 21. exf6 {[%clk 0:02:01]}  cxb2 {[%clk 0:02:09]} 22. Rb3 {[%clk 0:02:01]}  Bxf6 {[%clk 0:02:09]} 23. c3 {[%clk 0:02:01]}  Rfc8 {[%clk 0:02:06]} 24. Rxb2 {[%clk 0:02:00]}  Rxc3 {[%clk 0:02:05]} 25. Rxc3 {[%clk 0:01:57]}  Bxc3 {[%clk 0:02:06]} 26. Rc2 {[%clk 0:01:57]}  Bb4 {[%clk 0:02:05]} 27. Kf1 {[%clk 0:01:55]}  g6 {[%clk 0:01:30]} 28. Ke2 {[%clk 0:01:49]}  Bc5 {[%clk 0:01:30]} 29. Bxc5 {[%clk 0:01:45]}  Rc8 {[%clk 0:01:29]} 30. Kd3 {[%clk 0:01:44]}  dxc5 {[%clk 0:01:23]} 31. Kc4 {[%clk 0:01:42]}  Rb8 {[%clk 0:01:20]} 32. Kxc5 {[%clk 0:01:38]}  Rb5+ {[%clk 0:01:20]} 33. Kd6 {[%clk 0:01:38]}  Rxa5 {[%clk 0:01:20]} 34. Ke7 {[%clk 0:01:38]}  Kg7 {[%clk 0:01:18]} 35. Rc6 {[%clk 0:01:33]}  Ra2 {[%clk 0:01:15]} 36. g4 {[%clk 0:01:32]}  Rxh2 {[%clk 0:01:13]} 37. Rxa6 {[%clk 0:01:30]}  Rf2 {[%clk 0:01:11]} 38. Ra4 {[%clk 0:01:30]}  h5 {[%clk 0:01:11]} 39. gxh5 {[%clk 0:01:28]}  gxh5 {[%clk 0:01:12]} 40. Kd6 {[%clk 0:01:27]}  h4 {[%clk 0:01:04]} 41. Ke5 {[%clk 0:01:26]}  Re2+ {[%clk 0:00:56]} 42. Kd4 {[%clk 0:01:24]}  Kg6 {[%clk 0:00:56]} 43. Kd3 {[%clk 0:01:23]}  Rg2 {[%clk 0:00:50]} 44. f5+ {[%clk 0:01:19]}  Kxf5 {[%clk 0:00:47]} 45. Rxh4 {[%clk 0:01:19]}  e5 {[%clk 0:00:44]} 46. Ke3 {[%clk 0:01:16]}  Rg3+ {[%clk 0:00:43]} 47. Kf2 {[%clk 0:01:16]}  Ra3 {[%clk 0:00:43]} 48. Ke2 {[%clk 0:01:15]}  e4 {[%clk 0:00:41]} 49. Kf2 {[%clk 0:01:15]}  Ke5 {[%clk 0:00:41]} 0-1


[Site "https://www.chess.com"]